Cogmind - Beta 13 @@@ ROGUE MODE // 2024.04.11 @ 17:15:28 Player: HoneyComb Result: Destroyed by EX-DEC with AWS/EX-DEC Performance ------------- Evolutions (0) 0 Regions Visited (3) 600 Robots Destroyed (2) 10 Value Destroyed (81) 81 Prototype IDs (0) 0 Alien Tech Used (0) 0 Bonus (-42) -42 TOTAL SCORE: 649 Bonus ------- Friendly Fire -42 Cogmind --------- Core Integrity 0/250 Matter 287/300 Energy 100/100 System Corruption 4% Temperature Cool (0) Movement Core (50) Location -10/Exiles Parts ------- > --- POWER (1) -------- (None) > --- PROPULSION (2) --- (None) > --- UTILITY (2) ------ (None) > --- WEAPON (2) ------- (None) > --- INVENTORY (5) ---- (None) Peak State ------------ > --- POWER ------------ Ion Engine > --- PROPULSION ------- Wheel Wheel > --- UTILITY ---------- (None) > --- WEAPON ----------- Assault Rifle Mining Laser > --- INVENTORY -------- (None) [Rating: 5] Favorites ----------- Power Ion Engine Engine Ion Engine Propulsion Wheel Wheel Wheel Utility None Weapon Assault Rifle Ballistic Gun Assault Rifle Special Weapon Mining Laser Build | -11 -10 -10 -10 ------- Run | Yrd Mat Min Exi Slots Evolved . | . . . . Power . | . . . . Propulsion . | . . . . Utility . | . . . . Weapon . | . . . . Parts Attached 5 | 4 1 . . Power 1 | 1 . . . Engine 1 | 1 . . . Core . | . . . . Reactor . | . . . . Propulsion 2 | 2 . . . Treads . | . . . . Leg . | . . . . Wheel 2 | 2 . . . Hover . | . . . . Flight . | . . . . Utility . | . . . . Device . | . . . . Storage . | . . . . Processor . | . . . . Hackware . | . . . . Protection . | . . . . Artifact . | . . . . Weapon 2 | 1 1 . . Energy Gun . | . . . . Energy Cannon . | . . . . Ballistic Gun 1 | 1 . . . Ballistic Cannon . | . . . . Launcher . | . . . . Special Weapon 1 | . 1 . . Impact Weapon . | . . . . Slashing Weapon . | . . . . Piercing Weapon . | . . . . Special Melee Weapon . | . . . . Unidentified Prototypes . | . . . . Parts Lost 5 | . 1 . 4 Power 1 | . . . 1 Propulsion 2 | . . . 2 Utility . | . . . . Weapon 2 | . 1 . 1 Highest Loss Streak 4 | . 1 . 4 To Critical Strikes . | . . . . Average Slot Usage (%) 62 | . 68 57 57 Engine 14 | . 14 14 14 Wheel 28 | . 28 28 28 Ballistic Gun 14 | . 14 14 14 Special Weapon 5 | . 11 . . Naked Turns 2 | . . . 2 Heaviest Build 8 | 7 8 7 7 Greatest Support 20 | 20 20 20 20 Greatest Overweight (x) . | . . . . Average Overweight (x) . | . . . . Largest Inventory Capacity 5 | 5 5 5 5 Average Capacity 5 | 5 5 5 5 Most Carried 3 | 3 1 . . Average Carried . | . . . . Final Capacity 5 | 5 5 5 5 Final Carried . | . . . . Class Distribution -------------------- 100% | Mutant Dominant Class ---------------- Mutant | -10/Materials Mutant | -10/Mines Mutant | -10/Exiles Resources | -11 -10 -10 -10 ----------- Run | Yrd Mat Min Exi Matter Collected 283 | 199 84 . . Remotely . | . . . . Salvage Created 84 | . 84 . . Parts 2 | . 2 . . Haulers Intercepted . | . . . . Recyclers Shooed . | . . . . Parts Field Recycled . | . . . . Retrieved Matter . | . . . . Parts Self-Destructed . | . . . . Prevented . | . . . . Kills | -11 -10 -10 -10 ------- Run | Yrd Mat Min Exi Combat Hostiles Destroyed 2 | . 2 . . Guns 2 | . 2 . . Classes Destroyed 1 | . 1 . . Grunt 2 | . 2 . . Best Kill Streak 2 | . 2 . . Combat Bots Only 2 | . 2 . . Max Kills in Single Turn 1 | . 1 . . Gunslinging . | . . . . Exploded . | . . . . Melee . | . . . . Uniques/NPCs Destroyed . | . . . . Combat | -11 -10 -10 -10 -------- Run | Yrd Mat Min Exi Hostile Shots Fired 40 | . 23 . 17 Missed 9 | . 5 . 4 Damage Taken 548 | . 244 . 304 Core 258 | . 72 . 186 Absorbed by Shields . | . . . . Core Remaining (%) 100 | 100 . . . Volleys Fired 22 | . 19 . 3 Largest 1 | . 1 . 1 Hottest 20 | . 20 . 20 Shots Fired 22 | . 19 . 3 Gun 22 | . 19 . 3 Cannon . | . . . . Launcher . | . . . . Special . | . . . . Kinetic 22 | . 19 . 3 Thermal . | . . . . Explosive . | . . . . Electromagnetic . | . . . . Robot Hit Streak 3 | . 3 . 1 Robot Miss Streak 4 | . 4 . 2 Penetration Max . | . . . . Secondary Targets . | . . . . Shots Hit Robots 9 | . 8 . 1 Core Hits 6 | . 6 . . Critical Kills . | . . . . Critical Parts Destroyed . | . . . . Critical Strikes . | . . . . Melee Attacks . | . . . . Impact . | . . . . Slashing . | . . . . Piercing . | . . . . Sneak Attacks . | . . . . Combat Hostiles . | . . . . Follow-up Attacks . | . . . . Damage Inflicted 128 | . 114 . 14 Guns 122 | . 108 . 14 Cannons . | . . . . Explosions . | . . . . Melee . | . . . . Ramming 6 | . 6 . . Kinetic 122 | . 108 . 14 Thermal . | . . . . Explosive . | . . . . Electromagnetic . | . . . . Impact . | . . . . Slashing . | . . . . Piercing . | . . . . Highest Corruption 2 | . 1 1 2 Average Corruption 1 | . 1 1 1 Corruption Purged . | . . . . Corruption Blocked . | . . . . Effects 2 | . . 2 . Matter Fused 2 | . . 2 . Overload Shots . | . . . . Overflow Damage . | . . . . Projectiles . | . . . . Explosions . | . . . . Melee . | . . . . Knockbacks . | . . . . Impact . | . . . . Kinetic . | . . . . Secondary . | . . . . Self-Inflicted Damage 2 | . 2 . . Shots . | . . . . Rammed 3 | . 3 . . Targets Rammed 3 | . 3 . . Kicked . | . . . . Crushed . | . . . . Highest Temperature 23 | . 23 . . Average Temperature 11 | . 11 . . Received Heat Transfer 153 | . 153 . . Siege Activations . | . . . . Robots Corrupted . | . . . . Combat Hostiles . | . . . . Parts Fried . | . . . . Impact Corruptions . | . . . . Robots Melted . | . . . . Combat Hostiles . | . . . . Parts Melted . | . . . . Heat Transferred . | . . . . Parts Sabotaged . | . . . . Parts Stolen . | . . . . Parts Stripped . | . . . . Power Chain Reactions . | . . . . Alert | -11 -10 -10 -10 ------- Run | Yrd Mat Min Exi Peak Influence 85 | . 85 33 . Initial 33 | . . 33 . Average 32 | . 38 33 . Maximum Alert Level . | . . . . Low Security (%) 100 | 100 100 100 . Level 1 . | . . . . Level 2 . | . . . . Level 3 . | . . . . Level 4 . | . . . . Level 5 . | . . . . High Security . | . . . . Max Security . | . . . . Squads Dispatched 2 | . 2 . . Investigation . | . . . . Extermination . | . . . . Reinforcement 2 | . 2 . . Assault . | . . . . Garrison . | . . . . Intercept . | . . . . Searches Triggered . | . . . . Construction Impeded . | . . . . Haulers Reinforced . | . . . . Active Scanning Responses . | . . . . Cargo Convoy Interrupts . | . . . . Stealth | -11 -10 -10 -10 --------- Run | Yrd Mat Min Exi Distress Signals 1 | . 1 . . Communications Jammed . | . . . . Distress Signals . | . . . . Times Spotted 12 | . 8 . 4 Peak Tracking Total 12 | . 5 . 12 Tactical Retreats 1 | . . . 1 Traps | -11 -10 -10 -10 ------- Run | Yrd Mat Min Exi Traps Triggered . | . . . . Indirectly . | . . . . Trap Hack Attempts . | . . . . Triggered . | . . . . Disarmed . | . . . . Reprogrammed . | . . . . Reused . | . . . . Traps Extracted . | . . . . Installed . | . . . . Triggered . | . . . . Machines | -11 -10 -10 -10 ---------- Run | Yrd Mat Min Exi Machines Disabled . | . . . . Max in Single Turn . | . . . . Machines Repaired . | . . . . Machines Dismantled . | . . . . Machines Sabotaged . | . . . . Overloaded Fab Kills . | . . . . Hacking | -11 -10 -10 -10 --------- Run | Yrd Mat Min Exi Machines Accessed 2 | . 2 . . Terminals 1 | . 1 . . Fabricators . | . . . . Repair Stations 1 | . 1 . . Recycling Units . | . . . . Scanalyzers . | . . . . Garrison Access . | . . . . Total Hacks 2 | . 2 . . Successful . | . . . . Failed 2 | . 2 . . Catastrophic 1 | . 1 . . Database Lockouts . | . . . . Manual 1 | . 1 . . Terminals 1 | . 1 . . Fabricators . | . . . . Repair Stations 1 | . 1 . . Recycling Units . | . . . . Scanalyzers . | . . . . Garrison Access . | . . . . Terminal Hacks . | . . . . Fabricator Hacks . | . . . . Repair Station Hacks . | . . . . Recycling Unit Hacks . | . . . . Scanalyzer . | . . . . Garrison Access Hacks . | . . . . Unauthorized Hacks . | . . . . Terminals . | . . . . Fabricators . | . . . . Repair Stations . | . . . . Recycling Units . | . . . . Scanalyzers . | . . . . Garrison Access . | . . . . Data Cores Recovered . | . . . . Used . | . . . . Hacking Detections 2 | . 2 . . Full Trace Events . | . . . . Feedback Events . | . . . . Feedback Blocked . | . . . . Robot Schematics Acquired . | . . . . Robots Built . | . . . . Authchips . | . . . . Time . | . . . . Total Robot Build Rating . | . . . . Part Schematics Acquired . | . . . . Parts Built . | . . . . Authchips . | . . . . Time . | . . . . Total Part Build Rating . | . . . . Parts Repaired . | . . . . Time . | . . . . Parts Recycled . | . . . . Recycled Matter . | . . . . Retrieved Matter . | . . . . Retrieved Components . | . . . . Parts Scanalyzed . | . . . . Part Schematics Acquired . | . . . . Parts Damaged . | . . . . Bothacking | -11 -10 -10 -10 ------------ Run | Yrd Mat Min Exi Used RIF Installer . | . . . . Robots Hacked . | . . . . Non-combat . | . . . . Combat . | . . . . Robot Hacks Applied . | . . . . Relay Couplers Released . | . . . . Fabnet Peak Effective % . | . . . . Robots Rewired . | . . . . Allies Hacked . | . . . . Hacks Repelled . | . . . . Allies | -11 -10 -10 -10 -------- Run | Yrd Mat Min Exi Total Allies . | . . . . Largest Group . | . . . . Highest-Rated Group . | . . . . Highest-Rated Ally . | . . . . Total Orders . | . . . . Ally Attacks . | . . . . Total Damage . | . . . . Kills . | . . . . Allies Corrupted . | . . . . Allies Melted . | . . . . Intel | -11 -10 -10 -10 ------- Run | Yrd Mat Min Exi Robot Analysis Total . | . . . . Derelict Logs Recovered . | . . . . Drone Launches . | . . . . Drone Recoveries . | . . . . Exploration | -11 -10 -10 -10 ------------- Run | Yrd Mat Min Exi Turns Passed 428 | 43 197 88 100 Spaces Moved 455 | 46 185 109 115 Core 11 | 9 . . 2 Treads . | . . . . Legs . | . . . . Wheels 444 | 37 185 109 113 Hover . | . . . . Flight . | . . . . Fastest Speed 50 | 50 80 80 50 Average Speed 79 | 74 80 80 79 Slowest Speed 80 | 80 80 80 80 Overloaded Moves . | . . . . Propulsion Burnouts . | . . . . Robots Hopped . | . . . . Cave-ins Triggered . | . . . . Exploration Rate (%) 27 | 4 33 27 45 Regions Visited 3 Branch Regions 2 Pre-discovered Areas 1 | . . 1 . Known Exits Taken . | . . . . Unknown Exits Taken 3 | 1 1 1 . Scrap Searched . | . . . . Spaces Dug . | . . . . Terrain Destroyed . | . . . . Melee . | . . . . Projectile . | . . . . AOE . | . . . . Terrain Rammed . | . . . . Walls Destroyed . | . . . . Machines Disabled . | . . . . Actions | -11 -10 -10 -10 --------- Run | Yrd Mat Min Exi Total 497 | 54 214 109 120 Wait 10 | 1 6 1 2 Move 452 | 45 184 108 115 Hop . | . . . . Pick Up 5 | 4 1 . . Fast Attach . | . . . . Attach 5 | 4 1 . . Detach . | . . . . Swap . | . . . . Drop . | . . . . Fire 22 | . 19 . 3 Melee . | . . . . Ram 3 | . 3 . . Kick . | . . . . Crush . | . . . . Escape Stasis . | . . . . Rewire . | . . . . Trap . | . . . . Miscellaneous . | . . . . Route ------- -11/Scrapyard -10/Materials -10/Mines -10/Exiles (discovered 1 exit: [*Min]) History --------- Turn | Location | Event 5 | -11/Scrapyard | Discovered new exit (range 15) 44 | -11/Scrapyard | Entered Materials 229 | -10/Materials | Discovered new exit (range 13) 241 | -10/Materials | Entered Mines 242 | -10/Mines | Learned location of Storage (-9) 287 | -10/Mines | Met a Derelict bent on vengeance 303 | -10/Mines | Build established: Mutant 323 | -10/Mines | Deemed a non-threat by the Exiles lab entrance 324 | -10/Mines | Discovered new exit (range 5) 329 | -10/Mines | Entered Exiles 349 | -10/Exiles | Discovered new exit (range 15) 359 | -10/Exiles | Met 8R-AWN 376 | -10/Exiles | Met EX-HEX 400 | -10/Exiles | Met EX-BIN 410 | -10/Exiles | Met EX-DEC 423 | -10/Exiles | Attacked by the Exiles 427 | -10/Exiles | Core integrity fell below 50% 429 | -10/Exiles | Core integrity fell below 20% 429 | -10/Exiles | Destroyed by EX-DEC with AWS/EX-DEC Last Messages --------------- data and tweak this thing to perfection, the faster I can get back to my spacelab designs." Bump into non-hostile robots that show a flashing green ! when spotted to talk to them. EX-DEC: Ah I see we have a visitor. One wrong move in here and I'll invert your atomic chain! EX-DEC: "Oops, I hope HEX didn't hear that..." EXILES: Hostile robot within lab perimeter. Defensive protocols time, folks! Machine disabled. EX-DEC: "Let's see what this bad boy can do..." EX-DEC deploys DAS Turret. Knocked back. Wheel destroyed. Assault Rifle destroyed. Critical hit (Blast). Knocked back. Ion Engine destroyed. Knocked back. Map ----- +----------------------------------------------------+ | ?????????????????????????????????????????#" | | ?????????????????????????????????????????#" | | ??????????????????????????????????????????" | | ??????????????????????????????????????????# | | ??????????????????????????????????????????# | | ??????????????????????????????????????????#" | | ????????????????????????????" ????????????#" | | ???????????????????????????? ???????????#" " | | ????????????????????????????" ??????????##" #? | | ????????????????????????????# #????????##"" #? | | ??????????????????????????### ##??######"" #? | | ?????????????????? """#####X# #"###""""""" ## | | ????????????????? """""" " "" # | | ????????????????? "" """ " | | ???????????????? " " | | ????????????????? | | ?????????????????# | | ??????????????????# | | ???????????????????# z | | ????????????????????#" | | ????????????????????#""" """""" | | ???????????????????##" ######""" | | ???????????????????#"" ""##????#####" | | ??????????????????##"""% """##?????????## | | ??????????????????#""" """##???????????# | | ??????????????????#"%" @ ""#????????????# | | ??????????????????#"" % ##????????????" | | ??????????????????#"" #??????????" | | ??????????????????#""t ?????" | | ??????????????????##"" ?????? | | ???????????????????#""" ???? | | ???????????????????## ???? | | ????????????????????#" "??? "" | | ????????????????????#""""c ""????##"" | | ????????????????????#"" ""#???????## | | ????????????????????#" """"??????????? | | ?????????????????????""" ?????????????? | | ?????????????????????? "????????????? | | ???????????????????????" "??????????????? | | ????????????????????????"" ????????????????? | | ????????????????????????"""" ???????????????????? | | ?????????????????????????????????????????????????? | | ?????????????????????????????????????????????????? | | ?????????????????????????????????????????????????? | | ?????????????????????????????????????????????????? | | ?????????????????????????????????????????????????? | | ?????????????????????????????????????????????????? | | ?????????????????????????????????????????????????? | | ?????????????????????????????????????????????????? | | ?????????????????????????????????????????????????? | +----------------------------------------------------+ Best States ------------- Heat Dissipation 25 Energy Generation 10 Energy Capacity 250 Matter Stores 295 Matter Capacity 300 Sight Range 16 Terrain Scan Density 10 Evasion (%) 44 Item Schematics ----------------- None Robot Schematics ------------------ None Fabricated ------------ Nothing Alien Tech Used ----------------- None Achievements -------------- None Challenges ------------ None Game ------ Seed GyrokineticFlightFalx Manual? 0 Play Time 00:11:11 Cumulative 3.0 hours Start 2024.04.11 @ 17:06:29 End 2024.04.11 @ 17:15:28 Sessions 1 Manual Loads 0 Difficulty Rogue Special Mode None Game No. 9 Rogue 4 Adventurer 5 Explorer 0 Win Type - Total 0 Types 0/0/0/0/0/0/0/0/0 Lore% 1 Gallery% 5 Achievement% 5 Wizard Run 0 Options --------- Layout 1 ASCII 0 Keyboard 0 Movement Numpad Keybinds 0 Fullscreen 1 Font 24/Smallcaps Map View 50x35 Zoom Use 0% Tactical HUD 0 Map Filters NONE Filters NONE Steam 1 RUN: 4e6ef866-990f-4982-aaf3-23c5396e90f0